[Event "Titled Tuesday Blitz May 23 Early 2023"]
[White "Necula, Iulian"]
[Black "Clawitter, Craig"]
[WhiteFideId "1232380"]
[BlackFideId "2023105"]
[WhiteElo "1790"]
[BlackElo "2226"]
[Result "0-1"]
[Round "10"]
[TimeControl "180+2"]
[Date "2023.05.23"]
[WhiteClock "0:01:26"]
[BlackClock "0:00:06"]

1. d4 {[%clk 0:03:00]}  Nf6 {[%clk 0:00:47]} 2. Nc3 {[%clk 0:02:57]}  g6 {[%clk 0:00:48]} 3. Bf4 {[%clk 0:02:57]}  d5 {[%clk 0:00:46]} 4. e3 {[%clk 0:02:57]}  Bg7 {[%clk 0:00:47]} 5. h4 {[%clk 0:02:57]}  h5 {[%clk 0:00:46]} 6. Qd2 {[%clk 0:02:54]}  O-O {[%clk 0:00:46]} 7. Nf3 {[%clk 0:02:54]}  c5 {[%clk 0:00:43]} 8. Nb5 {[%clk 0:02:50]}  Nc6 {[%clk 0:00:36]} 9. Nc7 {[%clk 0:02:43]}  Rb8 {[%clk 0:00:36]} 10. dxc5 {[%clk 0:02:40]}  e5 {[%clk 0:00:29]} 11. Nxe5 {[%clk 0:02:31]}  Nxe5 {[%clk 0:00:21]} 12. Bxe5 {[%clk 0:02:31]}  Ne4 {[%clk 0:00:18]} 13. Qxd5 {[%clk 0:02:26]}  Qxd5 {[%clk 0:00:16]} 14. Nxd5 {[%clk 0:02:27]}  Bxe5 {[%clk 0:00:16]} 15. Bd3 {[%clk 0:02:16]}  Nf6 {[%clk 0:00:12]} 16. Ne7+ {[%clk 0:02:11]}  Kg7 {[%clk 0:00:12]} 17. Nxc8 {[%clk 0:02:11]}  Rbxc8 {[%clk 0:00:11]} 18. O-O {[%clk 0:02:03]}  Bxb2 {[%clk 0:00:10]} 19. Rab1 {[%clk 0:02:03]}  Be5 {[%clk 0:00:08]} 20. Rxb7 {[%clk 0:02:02]}  Rc7 {[%clk 0:00:09]} 21. Rb5 {[%clk 0:02:01]}  Rfc8 {[%clk 0:00:08]} 22. f4 {[%clk 0:01:58]}  Bc3 {[%clk 0:00:07]} 23. f5 {[%clk 0:01:53]}  Rxc5 {[%clk 0:00:07]} 24. Rxc5 {[%clk 0:01:53]}  Rxc5 {[%clk 0:00:07]} 25. fxg6 {[%clk 0:01:54]}  fxg6 {[%clk 0:00:07]} 26. e4 {[%clk 0:01:53]}  Bd4+ {[%clk 0:00:06]} 27. Kh2 {[%clk 0:01:52]}  Nd7 {[%clk 0:00:07]} 28. Rb1 {[%clk 0:01:49]}  Ne5 {[%clk 0:00:07]} 29. Rb7+ {[%clk 0:01:49]}  Kh6 {[%clk 0:00:06]} 30. Rxa7 {[%clk 0:01:48]}  Nxd3 {[%clk 0:00:05]} 31. cxd3 {[%clk 0:01:48]}  Rc3 {[%clk 0:00:06]} 32. Re7 {[%clk 0:01:44]}  Rxd3 {[%clk 0:00:06]} 33. a4 {[%clk 0:01:44]}  Ra3 {[%clk 0:00:05]} 34. e5 {[%clk 0:01:37]}  Rxa4 {[%clk 0:00:05]} 35. e6 {[%clk 0:01:37]}  Ra5 {[%clk 0:00:04]} 36. g3 {[%clk 0:01:37]}  Re5 {[%clk 0:00:04]} 37. Kg2 {[%clk 0:01:36]}  Bc5 {[%clk 0:00:02]} 38. Re8 {[%clk 0:01:35]}  Kg7 {[%clk 0:00:02]} 39. Kf3 {[%clk 0:01:36]}  Kf6 {[%clk 0:00:02]} 40. g4 {[%clk 0:01:30]}  hxg4+ {[%clk 0:00:02]} 41. Kxg4 {[%clk 0:01:30]}  Rxe6 {[%clk 0:00:03]} 42. Rxe6+ {[%clk 0:01:30]}  Kxe6 {[%clk 0:00:03]} 43. Kg5 {[%clk 0:01:30]}  Kf7 {[%clk 0:00:03]} 44. h5 {[%clk 0:01:29]}  Be7+ {[%clk 0:00:03]} 45. Kg4 {[%clk 0:01:27]}  g5 {[%clk 0:00:03]} 46. Kf5 {[%clk 0:01:25]}  Kg7 {[%clk 0:00:03]} 47. Kg4 {[%clk 0:01:20]}  Kh6 {[%clk 0:00:04]} 48. Kh3 {[%clk 0:01:19]}  Kxh5 {[%clk 0:00:04]} 49. Kg3 {[%clk 0:01:20]}  g4 {[%clk 0:00:04]} 50. Kg2 {[%clk 0:01:21]}  Kh4 {[%clk 0:00:04]} 51. Kh2 {[%clk 0:01:22]}  g3+ {[%clk 0:00:05]} 52. Kg2 {[%clk 0:01:23]}  Kg4 {[%clk 0:00:05]} 53. Kg1 {[%clk 0:01:23]}  Kf3 {[%clk 0:00:05]} 54. Kh1 {[%clk 0:01:24]}  g2+ {[%clk 0:00:05]} 55. Kg1 {[%clk 0:01:25]}  Bc5+ {[%clk 0:00:06]} 56. Kh2 {[%clk 0:01:25]}  g1=Q+ {[%clk 0:00:06]} 57. Kh3 {[%clk 0:01:26]}  Qg3# {[%clk 0:00:06]} 0-1


[Site "https://www.chess.com"]

[Event "Titled Tuesday Blitz May 23 Early 2023"]
[White "stratacticos"]
[Black "Castillo Pena, Patricia Evarista"]
[BlackFideId "6412106"]
[WhiteElo "1895"]
[BlackElo "1919"]
[Result "1-0"]
[Round "10"]
[TimeControl "180+2"]
[Date "2023.05.23"]
[WhiteClock "0:00:05"]
[BlackClock "0:00:00"]

1. e4 {[%clk 0:03:00]}  c5 {[%clk 0:02:59]} 2. b4 {[%clk 0:02:56]}  cxb4 {[%clk 0:02:58]} 3. a3 {[%clk 0:02:56]}  bxa3 {[%clk 0:02:58]} 4. Nxa3 {[%clk 0:02:56]}  e5 {[%clk 0:02:52]} 5. Nf3 {[%clk 0:02:55]}  Nc6 {[%clk 0:02:52]} 6. Nc4 {[%clk 0:02:54]}  d6 {[%clk 0:02:50]} 7. Ba3 {[%clk 0:02:46]}  Be6 {[%clk 0:02:50]} 8. Ne3 {[%clk 0:02:43]}  Nf6 {[%clk 0:02:45]} 9. Bd3 {[%clk 0:02:38]}  Be7 {[%clk 0:02:40]} 10. O-O {[%clk 0:02:37]}  O-O {[%clk 0:02:40]} 11. c3 {[%clk 0:02:32]}  d5 {[%clk 0:02:28]} 12. Bxe7 {[%clk 0:02:26]}  Qxe7 {[%clk 0:02:28]} 13. exd5 {[%clk 0:02:25]}  Nxd5 {[%clk 0:02:29]} 14. Nxd5 {[%clk 0:02:24]}  Bxd5 {[%clk 0:02:29]} 15. Bb5 {[%clk 0:01:53]}  a6 {[%clk 0:02:26]} 16. Bxc6 {[%clk 0:01:52]}  Bxc6 {[%clk 0:02:26]} 17. Re1 {[%clk 0:01:52]}  e4 {[%clk 0:02:19]} 18. Nd4 {[%clk 0:01:51]}  Qd7 {[%clk 0:02:07]} 19. Qh5 {[%clk 0:01:41]}  Rfe8 {[%clk 0:01:57]} 20. Re3 {[%clk 0:01:29]}  Qd5 {[%clk 0:01:34]} 21. Qg4 {[%clk 0:01:20]}  Re5 {[%clk 0:01:13]} 22. h4 {[%clk 0:01:19]}  h5 {[%clk 0:01:07]} 23. Qe2 {[%clk 0:01:06]}  Rae8 {[%clk 0:01:05]} 24. Re1 {[%clk 0:00:56]}  g6 {[%clk 0:01:00]} 25. Qd1 {[%clk 0:00:38]}  Kg7 {[%clk 0:00:49]} 26. Qc2 {[%clk 0:00:33]}  f5 {[%clk 0:00:42]} 27. Qb2 {[%clk 0:00:32]}  f4 {[%clk 0:00:38]} 28. c4 {[%clk 0:00:28]}  Qxc4 {[%clk 0:00:21]} 29. Nxc6 {[%clk 0:00:25]}  Qxc6 {[%clk 0:00:20]} 30. Rxe4 {[%clk 0:00:24]}  Qd6 {[%clk 0:00:06]} 31. Rxf4 {[%clk 0:00:20]}  Kh6 {[%clk 0:00:04]} 32. Re3 {[%clk 0:00:16]}  Rxe3 {[%clk 0:00:04]} 33. dxe3 {[%clk 0:00:15]}  Qd1+ {[%clk 0:00:04]} 34. Kh2 {[%clk 0:00:15]}  Qd6 {[%clk 0:00:04]} 35. g3 {[%clk 0:00:13]}  Re7 {[%clk 0:00:02]} 36. Qh8+ {[%clk 0:00:12]}  Rh7 {[%clk 0:00:01]} 37. Qc3 {[%clk 0:00:10]}  Re7 {[%clk 0:00:01]} 38. Rf8 {[%clk 0:00:07]}  Rh7 {[%clk 0:00:00]} 39. Rf6 {[%clk 0:00:05]} 1-0


[Site "https://www.chess.com"]

[Event "Titled Tuesday Blitz May 23 Early 2023"]
[White "Mirimanian, Hayk"]
[Black "Silva Rosas, Natalia"]
[WhiteFideId "4700180"]
[BlackFideId "3000575"]
[WhiteElo "2280"]
[BlackElo "1651"]
[Result "1-0"]
[Round "10"]
[TimeControl "180+2"]
[Date "2023.05.23"]
[WhiteClock "0:00:51"]
[BlackClock "0:00:00"]

1. e4 {[%clk 0:03:00]}  c5 {[%clk 0:02:46]} 2. Nf3 {[%clk 0:03:00]}  e6 {[%clk 0:02:45]} 3. d4 {[%clk 0:03:00]}  cxd4 {[%clk 0:02:46]} 4. Nxd4 {[%clk 0:03:01]}  a6 {[%clk 0:02:46]} 5. c4 {[%clk 0:02:59]}  Bc5 {[%clk 0:02:45]} 6. Nb3 {[%clk 0:02:48]}  Ba7 {[%clk 0:02:41]} 7. Nc3 {[%clk 0:02:46]}  Nc6 {[%clk 0:02:41]} 8. Be2 {[%clk 0:02:44]}  Nf6 {[%clk 0:02:39]} 9. O-O {[%clk 0:02:41]}  d6 {[%clk 0:02:36]} 10. Kh1 {[%clk 0:02:40]}  Qc7 {[%clk 0:02:30]} 11. f4 {[%clk 0:02:30]}  Bb8 {[%clk 0:02:27]} 12. Bf3 {[%clk 0:02:28]}  h5 {[%clk 0:02:24]} 13. Qe2 {[%clk 0:02:15]}  b6 {[%clk 0:02:12]} 14. Be3 {[%clk 0:01:41]}  Bb7 {[%clk 0:01:49]} 15. Rac1 {[%clk 0:01:37]}  Ng4 {[%clk 0:01:42]} 16. Bxg4 {[%clk 0:01:31]}  hxg4 {[%clk 0:01:41]} 17. Qxg4 {[%clk 0:01:32]}  g6 {[%clk 0:01:36]} 18. Nd5 {[%clk 0:01:30]}  exd5 {[%clk 0:01:27]} 19. cxd5 {[%clk 0:01:31]}  Ba7 {[%clk 0:01:06]} 20. dxc6 {[%clk 0:01:30]}  Bxc6 {[%clk 0:01:01]} 21. Nd4 {[%clk 0:01:29]}  Qd7 {[%clk 0:00:42]} 22. Qg5 {[%clk 0:01:17]}  Bxe4 {[%clk 0:00:36]} 23. f5 {[%clk 0:01:16]}  b5 {[%clk 0:00:10]} 24. fxg6 {[%clk 0:01:08]}  Bxg6 {[%clk 0:00:07]} 25. Qf6 {[%clk 0:00:55]}  Rxh2+ {[%clk 0:00:04]} 26. Kxh2 {[%clk 0:00:55]}  Qg4 {[%clk 0:00:03]} 27. Rf4 {[%clk 0:00:49]}  Qh5+ {[%clk 0:00:02]} 28. Rh4 {[%clk 0:00:50]}  Qe5+ {[%clk 0:00:01]} 29. Qxe5+ {[%clk 0:00:50]}  dxe5 {[%clk 0:00:00]} 30. Rh8+ {[%clk 0:00:51]} 1-0


[Site "https://www.chess.com"]

[Event "Titled Tuesday Blitz May 23 Early 2023"]
[White "Dilmukhametov, Artur"]
[Black "Vargas, Mauricio"]
[WhiteFideId "24179922"]
[BlackFideId "4404572"]
[WhiteElo "2242"]
[BlackElo "1986"]
[Result "0-1"]
[Round "10"]
[TimeControl "180+2"]
[Date "2023.05.23"]
[WhiteClock "0:01:02"]
[BlackClock "0:00:50"]

1. e4 {[%clk 0:02:54]}  d5 {[%clk 0:02:57]} 2. exd5 {[%clk 0:02:53]}  Qxd5 {[%clk 0:02:58]} 3. Nc3 {[%clk 0:02:54]}  Qa5 {[%clk 0:02:58]} 4. d4 {[%clk 0:02:54]}  c6 {[%clk 0:02:58]} 5. Bf4 {[%clk 0:02:53]}  Nf6 {[%clk 0:02:58]} 6. Nf3 {[%clk 0:02:53]}  Bg4 {[%clk 0:02:56]} 7. Be2 {[%clk 0:02:53]}  e6 {[%clk 0:02:56]} 8. O-O {[%clk 0:02:53]}  Nbd7 {[%clk 0:02:50]} 9. Ne5 {[%clk 0:02:51]}  Bxe2 {[%clk 0:02:48]} 10. Qxe2 {[%clk 0:02:50]}  Be7 {[%clk 0:02:41]} 11. Qf3 {[%clk 0:02:36]}  Qb6 {[%clk 0:02:29]} 12. Nxd7 {[%clk 0:02:31]}  Nxd7 {[%clk 0:02:26]} 13. Qg3 {[%clk 0:02:26]}  Nf6 {[%clk 0:02:10]} 14. Qxg7 {[%clk 0:02:23]}  Rg8 {[%clk 0:02:09]} 15. Qh6 {[%clk 0:02:22]}  Rg6 {[%clk 0:01:52]} 16. Qh3 {[%clk 0:02:18]}  Qxd4 {[%clk 0:01:46]} 17. Rad1 {[%clk 0:02:12]}  Qxf4 {[%clk 0:01:39]} 18. Qd3 {[%clk 0:02:04]}  Rd8 {[%clk 0:01:28]} 19. Qe2 {[%clk 0:01:54]}  Rxd1 {[%clk 0:01:26]} 20. Rxd1 {[%clk 0:01:53]}  Qg4 {[%clk 0:01:23]} 21. Qxg4 {[%clk 0:01:49]}  Nxg4 {[%clk 0:01:20]} 22. Ne4 {[%clk 0:01:48]}  f5 {[%clk 0:01:15]} 23. Ng3 {[%clk 0:01:47]}  Bc5 {[%clk 0:01:14]} 24. Rd2 {[%clk 0:01:22]}  Rh6 {[%clk 0:00:57]} 25. h3 {[%clk 0:01:19]}  Nf6 {[%clk 0:00:52]} 26. Ne2 {[%clk 0:01:02]}  Ne4 {[%clk 0:00:50]} 0-1


[Site "https://www.chess.com"]

[Event "Titled Tuesday Blitz May 23 Early 2023"]
[White "Sjugirov, Sanan"]
[Black "Sychev, Klementy"]
[WhiteFideId "4189302"]
[BlackFideId "4114060"]
[WhiteElo "2569"]
[BlackElo "2583"]
[Result "1-0"]
[Round "11"]
[TimeControl "180+2"]
[Date "2023.05.23"]
[WhiteClock "0:01:48"]
[BlackClock "0:00:00"]

1. d4 {[%clk 0:02:57]}  Nf6 {[%clk 0:02:58]} 2. c4 {[%clk 0:02:57]}  g6 {[%clk 0:02:48]} 3. Nc3 {[%clk 0:02:58]}  Bg7 {[%clk 0:02:47]} 4. e4 {[%clk 0:02:58]}  d6 {[%clk 0:02:48]} 5. Nf3 {[%clk 0:02:58]}  O-O {[%clk 0:02:46]} 6. Be2 {[%clk 0:02:59]}  e5 {[%clk 0:02:45]} 7. d5 {[%clk 0:03:00]}  a5 {[%clk 0:02:43]} 8. h3 {[%clk 0:03:00]}  Qe8 {[%clk 0:02:16]} 9. Be3 {[%clk 0:03:00]}  Na6 {[%clk 0:02:13]} 10. g4 {[%clk 0:02:59]}  Nd7 {[%clk 0:02:00]} 11. Nd2 {[%clk 0:02:57]}  Ndc5 {[%clk 0:01:54]} 12. f3 {[%clk 0:02:51]}  Qe7 {[%clk 0:01:45]} 13. h4 {[%clk 0:02:51]}  f5 {[%clk 0:01:44]} 14. g5 {[%clk 0:02:48]}  fxe4 {[%clk 0:01:42]} 15. fxe4 {[%clk 0:02:48]}  Rf4 {[%clk 0:01:37]} 16. a3 {[%clk 0:02:48]}  a4 {[%clk 0:01:26]} 17. Qc2 {[%clk 0:02:46]}  Bd7 {[%clk 0:01:24]} 18. O-O-O {[%clk 0:02:45]}  Raf8 {[%clk 0:01:23]} 19. Rdg1 {[%clk 0:02:38]}  Be8 {[%clk 0:01:14]} 20. Kb1 {[%clk 0:02:36]}  c6 {[%clk 0:00:57]} 21. h5 {[%clk 0:02:36]}  gxh5 {[%clk 0:00:55]} 22. Bxh5 {[%clk 0:02:36]}  Bg6 {[%clk 0:00:46]} 23. Bxg6 {[%clk 0:02:36]}  hxg6 {[%clk 0:00:46]} 24. Rg2 {[%clk 0:02:34]}  Qf7 {[%clk 0:00:39]} 25. Rgh2 {[%clk 0:02:29]}  Rg4 {[%clk 0:00:25]} 26. Qd1 {[%clk 0:02:26]}  Rg3 {[%clk 0:00:25]} 27. Qe1 {[%clk 0:02:23]}  Rg4 {[%clk 0:00:19]} 28. Rh3 {[%clk 0:02:14]}  cxd5 {[%clk 0:00:18]} 29. cxd5 {[%clk 0:02:14]}  b5 {[%clk 0:00:18]} 30. Qe2 {[%clk 0:02:14]}  Rf4 {[%clk 0:00:16]} 31. Qh2 {[%clk 0:02:14]}  Qd7 {[%clk 0:00:14]} 32. Rh8+ {[%clk 0:02:07]}  Kf7 {[%clk 0:00:14]} 33. Rxf8+ {[%clk 0:02:07]}  Kxf8 {[%clk 0:00:14]} 34. Bxf4 {[%clk 0:02:07]}  exf4 {[%clk 0:00:15]} 35. Qxf4+ {[%clk 0:02:08]}  Kg8 {[%clk 0:00:15]} 36. Qh4 {[%clk 0:02:00]}  Bxc3 {[%clk 0:00:11]} 37. bxc3 {[%clk 0:01:58]}  Qg7 {[%clk 0:00:11]} 38. e5 {[%clk 0:01:56]}  Nc7 {[%clk 0:00:10]} 39. Qh3 {[%clk 0:01:52]}  Qxe5 {[%clk 0:00:05]} 40. Qh7+ {[%clk 0:01:50]}  Kf8 {[%clk 0:00:05]} 41. Rf1+ {[%clk 0:01:48]}  Ke8 {[%clk 0:00:04]} 42. Qg8+ {[%clk 0:01:48]}  Kd7 {[%clk 0:00:00]} 43. Rf7+ {[%clk 0:01:48]} 1-0


[Site "https://www.chess.com"]

[Event "Titled Tuesday Blitz May 23 Early 2023"]
[White "Hayrapetyan, Hovik"]
[Black "Drygalov, Andrey"]
[WhiteFideId "13302639"]
[BlackFideId "24171735"]
[WhiteElo "2348"]
[BlackElo "2466"]
[Result "0-1"]
[Round "11"]
[TimeControl "180+2"]
[Date "2023.05.23"]
[WhiteClock "0:00:00"]
[BlackClock "0:00:04"]

1. d4 {[%clk 0:03:00]}  Nf6 {[%clk 0:02:59]} 2. c4 {[%clk 0:03:01]}  e6 {[%clk 0:02:59]} 3. Nc3 {[%clk 0:03:01]}  Bb4 {[%clk 0:02:59]} 4. Nf3 {[%clk 0:03:01]}  O-O {[%clk 0:02:57]} 5. Bg5 {[%clk 0:03:01]}  h6 {[%clk 0:02:55]} 6. Bh4 {[%clk 0:03:01]}  c5 {[%clk 0:02:45]} 7. Rc1 {[%clk 0:03:00]}  d5 {[%clk 0:02:43]} 8. cxd5 {[%clk 0:02:56]}  exd5 {[%clk 0:02:38]} 9. dxc5 {[%clk 0:02:56]}  g5 {[%clk 0:02:38]} 10. Bg3 {[%clk 0:02:54]}  Nc6 {[%clk 0:02:37]} 11. e3 {[%clk 0:02:52]}  Ne4 {[%clk 0:02:31]} 12. Be2 {[%clk 0:02:45]}  Bxc3+ {[%clk 0:02:03]} 13. bxc3 {[%clk 0:02:44]}  Nxc5 {[%clk 0:02:03]} 14. c4 {[%clk 0:02:10]}  dxc4 {[%clk 0:01:24]} 15. Bxc4 {[%clk 0:01:52]}  Qxd1+ {[%clk 0:01:21]} 16. Kxd1 {[%clk 0:01:39]}  Ne4 {[%clk 0:01:20]} 17. Ke2 {[%clk 0:01:33]}  Bf5 {[%clk 0:01:03]} 18. Rhd1 {[%clk 0:01:28]}  Rac8 {[%clk 0:00:59]} 19. Nd2 {[%clk 0:01:16]}  Nxg3+ {[%clk 0:00:50]} 20. hxg3 {[%clk 0:01:17]}  Ne5 {[%clk 0:00:50]} 21. Bd5 {[%clk 0:00:22]}  Bd3+ {[%clk 0:00:49]} 22. Ke1 {[%clk 0:00:22]}  Ba6 {[%clk 0:00:50]} 23. Be4 {[%clk 0:00:23]}  Nd3+ {[%clk 0:00:48]} 24. Bxd3 {[%clk 0:00:23]}  Bxd3 {[%clk 0:00:49]} 25. Nb3 {[%clk 0:00:22]}  Bb5 {[%clk 0:00:35]} 26. Nd4 {[%clk 0:00:20]}  Ba4 {[%clk 0:00:34]} 27. Rxc8 {[%clk 0:00:20]}  Rxc8 {[%clk 0:00:34]} 28. Rb1 {[%clk 0:00:19]}  b6 {[%clk 0:00:32]} 29. g4 {[%clk 0:00:19]}  Rc3 {[%clk 0:00:26]} 30. Kd2 {[%clk 0:00:15]}  Ra3 {[%clk 0:00:25]} 31. Rb2 {[%clk 0:00:16]}  Bd7 {[%clk 0:00:21]} 32. f3 {[%clk 0:00:15]}  b5 {[%clk 0:00:21]} 33. Nc2 {[%clk 0:00:11]}  Ra4 {[%clk 0:00:20]} 34. a3 {[%clk 0:00:10]}  Ra6 {[%clk 0:00:12]} 35. Rb3 {[%clk 0:00:09]}  Ra5 {[%clk 0:00:11]} 36. Rd3 {[%clk 0:00:07]}  Be6 {[%clk 0:00:10]} 37. Nb4 {[%clk 0:00:06]}  Bc4 {[%clk 0:00:10]} 38. Rc3 {[%clk 0:00:06]}  Kf8 {[%clk 0:00:10]} 39. Nc6 {[%clk 0:00:04]}  Ra6 {[%clk 0:00:10]} 40. Ne5 {[%clk 0:00:03]}  Be6 {[%clk 0:00:08]} 41. f4 {[%clk 0:00:02]}  f6 {[%clk 0:00:07]} 42. Ng6+ {[%clk 0:00:02]}  Ke8 {[%clk 0:00:06]} 43. f5 {[%clk 0:00:03]}  Bd5 {[%clk 0:00:05]} 44. g3 {[%clk 0:00:03]}  Bc4 {[%clk 0:00:04]} 45. e4 {[%clk 0:00:03]}  Rd6+ {[%clk 0:00:03]} 46. Ke3 {[%clk 0:00:03]}  Rd1 {[%clk 0:00:03]} 47. e5 {[%clk 0:00:04]}  fxe5 {[%clk 0:00:03]} 48. Nxe5 {[%clk 0:00:04]}  Re1+ {[%clk 0:00:03]} 49. Kd4 {[%clk 0:00:05]}  Rd1+ {[%clk 0:00:04]} 50. Kc5 {[%clk 0:00:05]}  Rd5+ {[%clk 0:00:04]} 51. Kc6 {[%clk 0:00:06]}  Rxe5 {[%clk 0:00:05]} 52. Kd6 {[%clk 0:00:05]}  Rd5+ {[%clk 0:00:05]} 53. Kc6 {[%clk 0:00:06]}  Rd8 {[%clk 0:00:04]} 54. Re3+ {[%clk 0:00:06]}  Kf7 {[%clk 0:00:05]} 55. Kb7 {[%clk 0:00:06]}  Rd7+ {[%clk 0:00:05]} 56. Ka6 {[%clk 0:00:06]}  Re7 {[%clk 0:00:05]} 57. Rc3 {[%clk 0:00:02]}  Rc7 {[%clk 0:00:04]} 58. Ka5 {[%clk 0:00:01]}  Kf6 {[%clk 0:00:04]} 59. Re3 {[%clk 0:00:02]}  Re7 {[%clk 0:00:04]} 60. Rc3 {[%clk 0:00:00]}  Re4 {[%clk 0:00:04]} 0-1


[Site "https://www.chess.com"]

[Event "Titled Tuesday Blitz May 23 Early 2023"]
[White "Pranav Anand"]
[Black "Durarbayli, Vasif"]
[WhiteFideId "46626786"]
[BlackFideId "13402935"]
[WhiteElo "2389"]
[BlackElo "2551"]
[Result "1-0"]
[Round "11"]
[TimeControl "180+2"]
[Date "2023.05.23"]
[WhiteClock "0:00:04"]
[BlackClock "0:00:00"]

1. d4 {[%clk 0:03:00]}  Nf6 {[%clk 0:02:59]} 2. c4 {[%clk 0:03:01]}  e6 {[%clk 0:03:00]} 3. Nc3 {[%clk 0:03:02]}  Bb4 {[%clk 0:03:00]} 4. e3 {[%clk 0:03:02]}  O-O {[%clk 0:03:00]} 5. Bd3 {[%clk 0:03:03]}  d6 {[%clk 0:03:01]} 6. Ne2 {[%clk 0:03:02]}  e5 {[%clk 0:03:01]} 7. O-O {[%clk 0:03:01]}  Nc6 {[%clk 0:03:00]} 8. Qc2 {[%clk 0:02:58]}  Bxc3 {[%clk 0:02:58]} 9. Qxc3 {[%clk 0:02:57]}  e4 {[%clk 0:02:57]} 10. Bc2 {[%clk 0:02:56]}  Re8 {[%clk 0:02:56]} 11. b4 {[%clk 0:02:55]}  Ne7 {[%clk 0:02:54]} 12. Bb2 {[%clk 0:02:54]}  Ng6 {[%clk 0:02:53]} 13. a4 {[%clk 0:02:47]}  Bg4 {[%clk 0:02:37]} 14. Rae1 {[%clk 0:02:46]}  Nh4 {[%clk 0:02:31]} 15. Ng3 {[%clk 0:02:39]}  Qd7 {[%clk 0:02:27]} 16. d5 {[%clk 0:02:37]}  Bf3 {[%clk 0:02:23]} 17. Bxe4 {[%clk 0:02:23]}  Bxe4 {[%clk 0:02:14]} 18. f3 {[%clk 0:02:22]}  Bg6 {[%clk 0:02:09]} 19. e4 {[%clk 0:02:21]}  Re7 {[%clk 0:01:28]} 20. Qd2 {[%clk 0:02:11]}  Rae8 {[%clk 0:00:56]} 21. Qg5 {[%clk 0:01:45]}  Nxf3+ {[%clk 0:00:34]} 22. gxf3 {[%clk 0:01:44]}  h6 {[%clk 0:00:35]} 23. Qh4 {[%clk 0:01:14]}  Nh7 {[%clk 0:00:35]} 24. b5 {[%clk 0:01:13]}  f5 {[%clk 0:00:25]} 25. f4 {[%clk 0:01:08]}  fxe4 {[%clk 0:00:17]} 26. f5 {[%clk 0:01:08]}  Ng5 {[%clk 0:00:16]} 27. fxg6 {[%clk 0:00:57]}  Nf3+ {[%clk 0:00:16]} 28. Rxf3 {[%clk 0:00:58]}  exf3 {[%clk 0:00:17]} 29. Rxe7 {[%clk 0:00:59]}  Rxe7 {[%clk 0:00:17]} 30. Kf2 {[%clk 0:00:35]}  Qe8 {[%clk 0:00:16]} 31. Kxf3 {[%clk 0:00:27]}  Re1 {[%clk 0:00:13]} 32. Qd4 {[%clk 0:00:17]}  Qxg6 {[%clk 0:00:12]} 33. Kg2 {[%clk 0:00:18]}  Re2+ {[%clk 0:00:07]} 34. Kh3 {[%clk 0:00:17]}  Rc2 {[%clk 0:00:08]} 35. Ba1 {[%clk 0:00:14]}  h5 {[%clk 0:00:05]} 36. Qf4 {[%clk 0:00:12]}  Qg4+ {[%clk 0:00:04]} 37. Qxg4 {[%clk 0:00:12]}  hxg4+ {[%clk 0:00:04]} 38. Kxg4 {[%clk 0:00:13]}  Rxc4+ {[%clk 0:00:05]} 39. Kg5 {[%clk 0:00:11]}  Rxa4 {[%clk 0:00:06]} 40. Bc3 {[%clk 0:00:12]}  Rc4 {[%clk 0:00:06]} 41. Ba1 {[%clk 0:00:10]}  Rc5 {[%clk 0:00:06]} 42. Nf5 {[%clk 0:00:10]}  Kf7 {[%clk 0:00:04]} 43. Nxg7 {[%clk 0:00:08]}  Rxb5 {[%clk 0:00:02]} 44. Nf5 {[%clk 0:00:08]}  Rxd5 {[%clk 0:00:03]} 45. h4 {[%clk 0:00:08]}  Rd1 {[%clk 0:00:01]} 46. Bb2 {[%clk 0:00:08]}  Rb1 {[%clk 0:00:02]} 47. Bd4 {[%clk 0:00:08]}  c5 {[%clk 0:00:00]} 48. Be3 {[%clk 0:00:04]} 1-0


[Site "https://www.chess.com"]

[Event "Titled Tuesday Blitz May 23 Early 2023"]
[White "Bacrot, Etienne"]
[Black "Dubov, Daniil"]
[WhiteFideId "605506"]
[BlackFideId "24126055"]
[WhiteElo "2672"]
[BlackElo "2793"]
[Result "0-1"]
[Round "11"]
[TimeControl "180+2"]
[Date "2023.05.23"]
[WhiteClock "0:00:00"]
[BlackClock "0:00:58"]

1. d4 {[%clk 0:03:00]}  Nf6 {[%clk 0:02:59]} 2. Nf3 {[%clk 0:03:01]}  g6 {[%clk 0:03:00]} 3. g3 {[%clk 0:03:01]}  Bg7 {[%clk 0:03:01]} 4. Bg2 {[%clk 0:03:02]}  O-O {[%clk 0:03:02]} 5. O-O {[%clk 0:03:03]}  b6 {[%clk 0:03:03]} 6. b3 {[%clk 0:03:03]}  Bb7 {[%clk 0:03:03]} 7. Bb2 {[%clk 0:03:04]}  c5 {[%clk 0:03:04]} 8. e3 {[%clk 0:03:04]}  cxd4 {[%clk 0:03:03]} 9. exd4 {[%clk 0:03:04]}  d5 {[%clk 0:03:03]} 10. Nbd2 {[%clk 0:03:04]}  Nc6 {[%clk 0:03:04]} 11. Re1 {[%clk 0:03:04]}  Rc8 {[%clk 0:03:05]} 12. h3 {[%clk 0:03:04]}  e6 {[%clk 0:03:05]} 13. Ne5 {[%clk 0:03:03]}  Qc7 {[%clk 0:03:01]} 14. Rc1 {[%clk 0:02:59]}  Rfd8 {[%clk 0:02:57]} 15. Qe2 {[%clk 0:02:55]}  Nb4 {[%clk 0:02:48]} 16. a3 {[%clk 0:02:43]}  Ba6 {[%clk 0:02:38]} 17. c4 {[%clk 0:02:18]}  Nc6 {[%clk 0:02:28]} 18. Qe3 {[%clk 0:02:12]}  Bb7 {[%clk 0:02:21]} 19. c5 {[%clk 0:02:00]}  Nxe5 {[%clk 0:01:55]} 20. dxe5 {[%clk 0:01:59]}  d4 {[%clk 0:01:52]} 21. Qf4 {[%clk 0:01:25]}  Nd5 {[%clk 0:01:17]} 22. Qxd4 {[%clk 0:01:23]}  bxc5 {[%clk 0:01:17]} 23. Qe4 {[%clk 0:00:55]}  Bh6 {[%clk 0:01:10]} 24. Qe2 {[%clk 0:00:23]}  Bxd2 {[%clk 0:00:57]} 25. Qxd2 {[%clk 0:00:00]}  Nb4 {[%clk 0:00:58]} 0-1


[Site "https://www.chess.com"]